[Event "*** Titled Tuesday Blitz"]
[Site "Chess.com"]
[Date "2021.03.02"]
[Round "6"]
[White "SanQui14"]
[Black "Trankuilizer"]
[Result "0-1"]
[WhiteElo "2387"]
[BlackElo "2576"]
[TimeControl "180+1"]
[EndTime "11:04:47 PST"]
[Termination "Trankuilizer won by resignation"]

1. d4 {[%clk 0:02:55.9]} 1... Nf6 {[%clk 0:02:59.1]} 2. c4 {[%clk 0:02:55.5]}
2... c5 {[%clk 0:02:58.6]} 3. Nf3 {[%clk 0:02:54.4]} 3... cxd4 {[%clk
0:02:58.1]} 4. Nxd4 {[%clk 0:02:54.5]} 4... e5 {[%clk 0:02:59]} 5. Nb5 {[%clk
0:02:54.4]} 5... d5 {[%clk 0:02:58.5]} 6. cxd5 {[%clk 0:02:54.4]} 6... Bc5
{[%clk 0:02:57.8]} 7. N1c3 {[%clk 0:02:50.8]} 7... O-O {[%clk 0:02:56.8]} 8. e3
{[%clk 0:02:44.4]} 8... Bf5 {[%clk 0:02:51.1]} 9. a4 {[%clk 0:02:42.6]} 9...
Nbd7 {[%clk 0:02:47.9]} 10. Be2 {[%clk 0:02:42.1]} 10... a6 {[%clk 0:02:40.5]}
11. Na3 {[%clk 0:02:41.5]} 11... e4 {[%clk 0:02:40.9]} 12. O-O {[%clk
0:02:40.2]} 12... Ne5 {[%clk 0:02:40.1]} 13. Nc4 {[%clk 0:02:00.9]} 13... Nxc4
{[%clk 0:02:39.2]} 14. Bxc4 {[%clk 0:02:00.5]} 14... Bd6 {[%clk 0:02:39.8]} 15.
Be2 {[%clk 0:01:53.4]} 15... Qe7 {[%clk 0:02:39.6]} 16. f4 {[%clk 0:01:39.4]}
16... exf3 {[%clk 0:02:23.9]} 17. gxf3 {[%clk 0:01:36.3]} 17... Bc5 {[%clk
0:01:45.3]} 18. d6 {[%clk 0:01:33.8]} 18... Bxd6 {[%clk 0:01:43.4]} 19. e4
{[%clk 0:01:30.9]} 19... Bh3 {[%clk 0:01:42.2]} 20. Re1 {[%clk 0:01:29]} 20...
Qe5 {[%clk 0:01:26.5]} 21. f4 {[%clk 0:01:27.1]} 21... Bc5+ {[%clk 0:01:08.6]}
22. Kh1 {[%clk 0:01:26]} 22... Nxe4 {[%clk 0:01:08.1]} 23. fxe5 {[%clk 0:01:17]}
23... Nf2+ {[%clk 0:01:06.1]} 24. Kg1 {[%clk 0:01:17.1]} 24... Nxd1+ {[%clk
0:01:06.2]} 25. Kh1 {[%clk 0:01:17.3]} 25... Nf2+ {[%clk 0:01:05.5]} 26. Kg1
{[%clk 0:01:14.9]} 26... Nd3+ {[%clk 0:01:05.9]} 0-1

[Event "*** Titled Tuesday Blitz"]
[Site "Chess.com"]
[Date "2021.03.02"]
[Round "6"]
[White "chescomhuynya"]
[Black "Grineva_Marianna"]
[Result "1-0"]
[WhiteElo "2567"]
[BlackElo "2222"]
[TimeControl "180+1"]
[EndTime "11:04:47 PST"]
[Termination "chescomhuynya won by resignation"]

1. d4 {[%clk 0:03:00.9]} 1... d6 {[%clk 0:02:59.3]} 2. e4 {[%clk 0:03:00.3]}
2... c6 {[%clk 0:02:59.8]} 3. Nf3 {[%clk 0:02:54.6]} 3... h6 {[%clk 0:02:59.1]}
4. Bd3 {[%clk 0:02:53.8]} 4... Nd7 {[%clk 0:02:57.6]} 5. O-O {[%clk 0:02:53.6]}
5... g5 {[%clk 0:02:58]} 6. Re1 {[%clk 0:02:48.4]} 6... Bg7 {[%clk 0:02:58.2]}
7. Nc3 {[%clk 0:02:46.1]} 7... Nf8 {[%clk 0:02:54.5]} 8. e5 {[%clk 0:02:44.4]}
8... d5 {[%clk 0:02:47.8]} 9. Nd2 {[%clk 0:02:41.8]} 9... Ne6 {[%clk 0:02:42]}
10. Ne2 {[%clk 0:02:37.4]} 10... c5 {[%clk 0:02:33.4]} 11. c3 {[%clk 0:02:37.7]}
11... cxd4 {[%clk 0:02:27.3]} 12. cxd4 {[%clk 0:02:38]} 12... Bd7 {[%clk
0:02:27]} 13. Nf3 {[%clk 0:02:29.1]} 13... g4 {[%clk 0:02:25.6]} 14. Nh4 {[%clk
0:02:28.8]} 14... Ng5 {[%clk 0:02:24.7]} 15. Ng3 {[%clk 0:02:26]} 15... Rc8
{[%clk 0:02:13]} 16. Nhf5 {[%clk 0:02:25.5]} 16... Bf8 {[%clk 0:02:11.8]} 17.
Qxg4 {[%clk 0:02:16.2]} 17... Ne4 {[%clk 0:02:00.4]} 18. Nxe4 {[%clk 0:02:13.8]}
18... dxe4 {[%clk 0:02:01.3]} 19. Bxe4 {[%clk 0:02:13.3]} 19... h5 {[%clk
0:01:58.5]} 20. Ng7+ {[%clk 0:02:13.1]} 20... Bxg7 {[%clk 0:01:58.8]} 21. Qxg7
{[%clk 0:02:14]} 21... Be6 {[%clk 0:01:43]} 22. Qxh8 {[%clk 0:02:12.5]} 22...
Kd7 {[%clk 0:01:43.5]} 23. d5 {[%clk 0:02:07.4]} 23... Bg4 {[%clk 0:01:43.8]}
24. h3 {[%clk 0:02:07.5]} 24... Qa5 {[%clk 0:01:40.2]} 25. Be3 {[%clk
0:01:57.2]} 25... Nf6 {[%clk 0:01:39.8]} 26. e6+ {[%clk 0:01:47.1]} 26... fxe6
{[%clk 0:01:34.5]} 27. dxe6+ {[%clk 0:01:47]} 27... Bxe6 {[%clk 0:01:35.4]} 28.
Red1+ {[%clk 0:01:46.4]} 28... Nd5 {[%clk 0:01:28.1]} 29. Qe5 {[%clk 0:01:42.2]}
29... Rg8 {[%clk 0:00:58.2]} 30. Bxd5 {[%clk 0:01:40.5]} 1-0

[Event "*** Titled Tuesday Blitz"]
[Site "Chess.com"]
[Date "2021.03.02"]
[Round "6"]
[White "eldur16"]
[Black "GadimbayliA"]
[Result "1-0"]
[WhiteElo "2551"]
[BlackElo "2790"]
[TimeControl "180+1"]
[EndTime "11:04:49 PST"]
[Termination "eldur16 won by resignation"]

1. e4 {[%clk 0:03:00.9]} 1... e5 {[%clk 0:01:50.3]} 2. Nc3 {[%clk 0:02:59.3]}
2... Nf6 {[%clk 0:01:50.2]} 3. g3 {[%clk 0:02:58.8]} 3... d5 {[%clk 0:01:50]} 4.
exd5 {[%clk 0:02:58.1]} 4... Nxd5 {[%clk 0:01:50.9]} 5. Bg2 {[%clk 0:02:58.2]}
5... Nxc3 {[%clk 0:01:51.3]} 6. bxc3 {[%clk 0:02:58.2]} 6... Nc6 {[%clk
0:01:52.2]} 7. Ne2 {[%clk 0:02:55.1]} 7... Bc5 {[%clk 0:01:51.9]} 8. O-O {[%clk
0:02:54.1]} 8... O-O {[%clk 0:01:52.1]} 9. d3 {[%clk 0:02:52.2]} 9... Bb6 {[%clk
0:01:52.3]} 10. Be3 {[%clk 0:02:45.9]} 10... Be6 {[%clk 0:01:52.1]} 11. c4
{[%clk 0:02:40.9]} 11... f5 {[%clk 0:01:49.3]} 12. Qd2 {[%clk 0:02:37.1]} 12...
Rb8 {[%clk 0:01:46.9]} 13. Rab1 {[%clk 0:02:36.1]} 13... Ba5 {[%clk 0:01:33.6]}
14. Qc1 {[%clk 0:02:30.5]} 14... Qf6 {[%clk 0:01:33.5]} 15. Rb5 {[%clk
0:02:17.6]} 15... Bc3 {[%clk 0:01:24.8]} 16. Nxc3 {[%clk 0:02:14.3]} 16... f4
{[%clk 0:01:13.4]} 17. Ne4 {[%clk 0:02:11.4]} 17... Qg6 {[%clk 0:01:10.2]} 18.
Bc5 {[%clk 0:01:50]} 18... f3 {[%clk 0:01:10.1]} 19. Bh1 {[%clk 0:01:49]} 19...
Rf5 {[%clk 0:01:10]} 20. Qe3 {[%clk 0:01:39.7]} 20... b6 {[%clk 0:01:07.9]} 21.
Bxf3 {[%clk 0:01:29.1]} 21... Rd8 {[%clk 0:00:55.7]} 22. Nd2 {[%clk 0:01:21.4]}
1-0

[Event "*** Titled Tuesday Blitz"]
[Site "Chess.com"]
[Date "2021.03.02"]
[Round "6"]
[White "ural58"]
[Black "bakki78"]
[Result "0-1"]
[WhiteElo "2552"]
[BlackElo "2794"]
[TimeControl "180+1"]
[EndTime "11:04:51 PST"]
[Termination "bakki78 won by resignation"]

1. e4 {[%clk 0:02:54.9]} 1... c5 {[%clk 0:02:58.9]} 2. b3 {[%clk 0:02:54.6]}
2... b6 {[%clk 0:02:56.7]} 3. Bb2 {[%clk 0:02:52.9]} 3... Bb7 {[%clk 0:02:56.4]}
4. Qf3 {[%clk 0:02:52.8]} 4... Nc6 {[%clk 0:02:52]} 5. Bd3 {[%clk 0:02:47.5]}
5... Qc7 {[%clk 0:02:43.6]} 6. Nc3 {[%clk 0:02:46.3]} 6... e6 {[%clk 0:02:39]}
7. O-O-O {[%clk 0:02:41.5]} 7... a6 {[%clk 0:02:37.4]} 8. Qg3 {[%clk 0:02:37.6]}
8... O-O-O {[%clk 0:02:25.6]} 9. f4 {[%clk 0:02:28.6]} 9... Nge7 {[%clk
0:02:14.9]} 10. Nf3 {[%clk 0:02:26.1]} 10... f6 {[%clk 0:02:13.2]} 11. e5 {[%clk
0:02:14.7]} 11... Nb4 {[%clk 0:01:48.6]} 12. Be2 {[%clk 0:02:05]} 12... Nf5
{[%clk 0:01:42.8]} 13. Qf2 {[%clk 0:02:04.8]} 13... d5 {[%clk 0:01:40.3]} 14.
exd6 {[%clk 0:02:03.7]} 14... Bxd6 {[%clk 0:01:38]} 15. g3 {[%clk 0:02:02.4]}
15... Nd4 {[%clk 0:01:29.2]} 16. Rhf1 {[%clk 0:01:24.2]} 16... Nbxc2 {[%clk
0:01:22.8]} 17. Bc4 {[%clk 0:01:20.2]} 17... Bxf3 {[%clk 0:01:17]} 18. Bxe6+
{[%clk 0:01:20.3]} 18... Kb8 {[%clk 0:01:13.6]} 19. Nd5 {[%clk 0:01:19.5]} 19...
Bxd5 {[%clk 0:01:11.1]} 20. Bxd5 {[%clk 0:01:19.4]} 20... Nb4 {[%clk 0:01:11.2]}
21. Bc4 {[%clk 0:01:16.3]} 21... b5 {[%clk 0:01:10.5]} 22. Be2 {[%clk
0:01:07.3]} 22... Rhe8 {[%clk 0:01:10.1]} 0-1

[Event "*** Titled Tuesday Blitz"]
[Site "Chess.com"]
[Date "2021.03.02"]
[Round "6"]
[White "GM_LOADING"]
[Black "alexrustemov"]
[Result "0-1"]
[WhiteElo "2525"]
[BlackElo "2719"]
[TimeControl "180+1"]
[EndTime "11:04:52 PST"]
[Termination "alexrustemov won by resignation"]

1. d4 {[%clk 0:02:58.9]} 1... d5 {[%clk 0:02:59.3]} 2. Nf3 {[%clk 0:02:56.4]}
2... Nf6 {[%clk 0:02:58.7]} 3. c4 {[%clk 0:02:56.5]} 3... c6 {[%clk 0:02:57.5]}
4. Nc3 {[%clk 0:02:54.1]} 4... dxc4 {[%clk 0:02:56.7]} 5. a4 {[%clk 0:02:48.9]}
5... Bf5 {[%clk 0:02:55.8]} 6. e3 {[%clk 0:02:44.3]} 6... e6 {[%clk 0:02:54.9]}
7. Bxc4 {[%clk 0:02:43.9]} 7... Bb4 {[%clk 0:02:55.4]} 8. O-O {[%clk 0:02:42.2]}
8... O-O {[%clk 0:02:54.9]} 9. Bd2 {[%clk 0:02:41.2]} 9... a5 {[%clk 0:02:52.4]}
10. Ne2 {[%clk 0:02:32.9]} 10... Bxd2 {[%clk 0:02:49.1]} 11. Qxd2 {[%clk
0:02:33.8]} 11... h6 {[%clk 0:02:47.2]} 12. Ng3 {[%clk 0:02:32.3]} 12... Bh7
{[%clk 0:02:46.6]} 13. Ne5 {[%clk 0:02:32]} 13... Nbd7 {[%clk 0:02:45.4]} 14. f4
{[%clk 0:02:32.5]} 14... Ne4 {[%clk 0:02:25.8]} 15. Nxe4 {[%clk 0:02:31.1]}
15... Bxe4 {[%clk 0:02:26.7]} 16. Rac1 {[%clk 0:02:15.2]} 16... Nf6 {[%clk
0:02:26.1]} 17. Nd3 {[%clk 0:02:01]} 17... b6 {[%clk 0:02:06.6]} 18. Ne5 {[%clk
0:02:00.3]} 18... Rc8 {[%clk 0:02:03.7]} 19. Ba6 {[%clk 0:01:58.2]} 19... Rc7
{[%clk 0:02:03.1]} 20. Bd3 {[%clk 0:01:56.8]} 20... Qd5 {[%clk 0:02:00.9]} 21.
Rc3 {[%clk 0:01:52.1]} 21... c5 {[%clk 0:01:59]} 22. Rfc1 {[%clk 0:01:48.6]}
22... Rd8 {[%clk 0:01:52.8]} 23. Qe2 {[%clk 0:01:34.5]} 23... Bxd3 {[%clk
0:01:40.6]} 24. Nxd3 {[%clk 0:01:32.2]} 24... Ne4 {[%clk 0:01:35.1]} 25. R3c2
{[%clk 0:01:31.9]} 25... Rb7 {[%clk 0:01:20.6]} 26. Rc4 {[%clk 0:01:18.4]} 26...
Nd6 {[%clk 0:01:14.7]} 27. R4c2 {[%clk 0:01:16]} 27... cxd4 {[%clk 0:01:14.6]}
28. Ne5 {[%clk 0:01:13.8]} 0-1

[Event "*** Titled Tuesday Blitz"]
[Site "Chess.com"]
[Date "2021.03.02"]
[Round "6"]
[White "PowerThinking2650"]
[Black "wannabe2700"]
[Result "0-1"]
[WhiteElo "2460"]
[BlackElo "2712"]
[TimeControl "180+1"]
[EndTime "11:04:53 PST"]
[Termination "wannabe2700 won by resignation"]

1. e4 {[%clk 0:03:00.9]} 1... d5 {[%clk 0:02:59.2]} 2. exd5 {[%clk 0:03:00.7]}
2... Qxd5 {[%clk 0:03:00.1]} 3. Nc3 {[%clk 0:03:00.5]} 3... Qe5+ {[%clk
0:02:59.3]} 4. Be2 {[%clk 0:02:58.9]} 4... Bg4 {[%clk 0:02:53.3]} 5. h3 {[%clk
0:02:57.6]} 5... Bxe2 {[%clk 0:02:53.3]} 6. Ngxe2 {[%clk 0:02:56.1]} 6... Nc6
{[%clk 0:02:52]} 7. d4 {[%clk 0:02:55.6]} 7... Qa5 {[%clk 0:02:48]} 8. d5 {[%clk
0:02:45.7]} 8... O-O-O {[%clk 0:02:47.5]} 9. O-O {[%clk 0:02:33.4]} 9... Nf6
{[%clk 0:02:47.3]} 10. Nf4 {[%clk 0:02:15.2]} 10... e6 {[%clk 0:02:42.9]} 11. a3
{[%clk 0:01:55]} 11... exd5 {[%clk 0:02:23]} 12. Bd2 {[%clk 0:01:40.3]} 12... d4
{[%clk 0:02:13.5]} 13. Ncd5 {[%clk 0:01:38]} 13... Qc5 {[%clk 0:02:06]} 14. Nxf6
{[%clk 0:01:29.7]} 14... gxf6 {[%clk 0:02:06.9]} 15. b4 {[%clk 0:01:30]} 15...
Qf5 {[%clk 0:02:00.6]} 16. b5 {[%clk 0:01:19.2]} 16... Ne5 {[%clk 0:01:50.7]}
17. a4 {[%clk 0:01:19.2]} 17... Rg8 {[%clk 0:01:46.9]} 18. Kh1 {[%clk
0:01:14.8]} 18... Bd6 {[%clk 0:01:42.2]} 19. Nd5 {[%clk 0:01:08.3]} 19... Rxg2
{[%clk 0:01:16.2]} 20. Ne7+ {[%clk 0:00:52.7]} 20... Bxe7 {[%clk 0:01:14.6]} 21.
Kxg2 {[%clk 0:00:53.1]} 21... Rg8+ {[%clk 0:01:13]} 0-1

[Event "*** Titled Tuesday Blitz"]
[Site "Chess.com"]
[Date "2021.03.02"]
[Round "6"]
[White "Kale36"]
[Black "BanjoKazooieN64"]
[Result "0-1"]
[WhiteElo "2286"]
[BlackElo "2533"]
[TimeControl "180+1"]
[EndTime "11:04:54 PST"]
[Termination "BanjoKazooieN64 won by resignation"]

1. b3 {[%clk 0:03:00.2]} 1... b6 {[%clk 0:02:51.9]} 2. Bb2 {[%clk 0:02:59.9]}
2... Bb7 {[%clk 0:02:52.5]} 3. Nc3 {[%clk 0:02:59.7]} 3... Nc6 {[%clk
0:02:52.4]} 4. e4 {[%clk 0:02:59.5]} 4... e5 {[%clk 0:02:52.4]} 5. f4 {[%clk
0:02:57]} 5... f5 {[%clk 0:02:51.9]} 6. exf5 {[%clk 0:02:52.8]} 6... Nf6 {[%clk
0:02:45.2]} 7. Qe2 {[%clk 0:02:32.6]} 7... Bd6 {[%clk 0:02:40]} 8. Nf3 {[%clk
0:02:31.4]} 8... O-O {[%clk 0:02:39.1]} 9. O-O-O {[%clk 0:02:18.9]} 9... exf4
{[%clk 0:02:33.6]} 10. Qc4+ {[%clk 0:02:17.1]} 10... Kh8 {[%clk 0:02:33.4]} 11.
Ng5 {[%clk 0:02:17.2]} 11... Ne5 {[%clk 0:02:33.3]} 12. Qxf4 {[%clk 0:02:09.9]}
12... Nd3+ {[%clk 0:02:29.8]} 13. Bxd3 {[%clk 0:01:55.8]} 13... Bxf4 {[%clk
0:02:29.7]} 14. Nh3 {[%clk 0:01:53.8]} 14... Be5 {[%clk 0:02:27.8]} 15. Rhe1
{[%clk 0:01:44]} 15... d6 {[%clk 0:02:25.3]} 16. Be2 {[%clk 0:01:33.2]} 16...
Bxg2 {[%clk 0:02:24.5]} 17. d4 {[%clk 0:01:30.1]} 17... Bxh2 {[%clk 0:02:19.8]}
18. Bf1 {[%clk 0:01:25.2]} 18... Bxf1 {[%clk 0:02:12.5]} 19. Rxf1 {[%clk
0:01:24.9]} 19... d5 {[%clk 0:02:11.7]} 20. Ng5 {[%clk 0:01:23]} 20... Qd7
{[%clk 0:01:55.9]} 21. Ne2 {[%clk 0:01:19.4]} 21... Rae8 {[%clk 0:01:53.2]} 22.
Nf4 {[%clk 0:01:10.1]} 22... Qxf5 {[%clk 0:01:45.6]} 23. Nfe6 {[%clk 0:01:06.9]}
23... Qg6 {[%clk 0:01:24.6]} 24. Rh1 {[%clk 0:01:03.7]} 24... Bf4+ {[%clk
0:01:19.8]} 25. Kb1 {[%clk 0:01:00.8]} 25... Bxg5 {[%clk 0:01:18.6]} 0-1

[Event "*** Titled Tuesday Blitz"]
[Site "Chess.com"]
[Date "2021.03.02"]
[Round "6"]
[White "pastouche06"]
[Black "MirMan90"]
[Result "0-1"]
[WhiteElo "2547"]
[BlackElo "2743"]
[TimeControl "180+1"]
[EndTime "11:05:03 PST"]
[Termination "MirMan90 won by resignation"]

1. d4 {[%clk 0:03:00.9]} 1... g6 {[%clk 0:02:58.2]} 2. c4 {[%clk 0:03:00.6]}
2... Nh6 {[%clk 0:02:56]} 3. h4 {[%clk 0:02:53.7]} 3... Bg7 {[%clk 0:02:53.5]}
4. h5 {[%clk 0:02:49.1]} 4... d5 {[%clk 0:02:49.1]} 5. hxg6 {[%clk 0:02:34.6]}
5... hxg6 {[%clk 0:02:48.1]} 6. cxd5 {[%clk 0:02:31.5]} 6... Qxd5 {[%clk
0:02:44.6]} 7. Nc3 {[%clk 0:02:27.8]} 7... Qa5 {[%clk 0:02:42.4]} 8. e4 {[%clk
0:02:18.4]} 8... c6 {[%clk 0:02:37.6]} 9. f3 {[%clk 0:02:10.4]} 9... Qb6 {[%clk
0:02:22.5]} 10. Nge2 {[%clk 0:01:51.6]} 10... Nd7 {[%clk 0:02:16.8]} 11. Be3
{[%clk 0:01:47]} 11... Qxb2 {[%clk 0:02:09.8]} 12. Rb1 {[%clk 0:01:44.6]} 12...
Qa3 {[%clk 0:02:08.4]} 13. Qd2 {[%clk 0:01:41.6]} 13... Ng8 {[%clk 0:02:04.1]}
14. Rxh8 {[%clk 0:01:37.9]} 14... Bxh8 {[%clk 0:02:04]} 15. d5 {[%clk 0:01:32]}
15... Ngf6 {[%clk 0:02:00.4]} 16. dxc6 {[%clk 0:01:28.3]} 16... bxc6 {[%clk
0:01:59.1]} 17. Nd4 {[%clk 0:01:22.4]} 17... Ne5 {[%clk 0:01:55.2]} 18. Rb3
{[%clk 0:01:12.5]} 18... Qd6 {[%clk 0:01:47.8]} 19. f4 {[%clk 0:01:09.6]} 19...
Nfg4 {[%clk 0:01:36.1]} 20. fxe5 {[%clk 0:01:06.2]} 20... Bxe5 {[%clk
0:01:35.8]} 21. Nf3 {[%clk 0:01:00.3]} 21... Bg3+ {[%clk 0:01:32.1]} 22. Ke2
{[%clk 0:00:32.7]} 22... Ba6+ {[%clk 0:01:30.5]} 0-1

[Event "*** Titled Tuesday Blitz"]
[Site "Chess.com"]
[Date "2021.03.02"]
[Round "6"]
[White "Piccadilly123"]
[Black "Mihnea2017"]
[Result "0-1"]
[WhiteElo "2255"]
[BlackElo "2446"]
[TimeControl "180+1"]
[EndTime "11:05:09 PST"]
[Termination "Mihnea2017 won by resignation"]

1. e4 {[%clk 0:03:00.1]} 1... d6 {[%clk 0:02:59.8]} 2. d4 {[%clk 0:02:58.8]}
2... Nf6 {[%clk 0:02:59.6]} 3. Nc3 {[%clk 0:02:58.8]} 3... g6 {[%clk 0:02:59.9]}
4. f3 {[%clk 0:02:57.8]} 4... Bg7 {[%clk 0:02:58.1]} 5. Be3 {[%clk 0:02:58.3]}
5... c6 {[%clk 0:02:57.9]} 6. Qd2 {[%clk 0:02:58.2]} 6... b5 {[%clk 0:02:58.2]}
7. h4 {[%clk 0:02:48.6]} 7... h5 {[%clk 0:02:57.5]} 8. a3 {[%clk 0:02:41.9]}
8... Nbd7 {[%clk 0:02:51.3]} 9. d5 {[%clk 0:02:38.9]} 9... cxd5 {[%clk
0:02:50.2]} 10. exd5 {[%clk 0:02:10.7]} 10... a6 {[%clk 0:02:48.1]} 11. Nge2
{[%clk 0:02:09.8]} 11... Bb7 {[%clk 0:02:45.4]} 12. Nd4 {[%clk 0:01:49.7]} 12...
Nxd5 {[%clk 0:02:37.6]} 13. Nxd5 {[%clk 0:01:49.1]} 13... Bxd5 {[%clk
0:02:38.5]} 14. Nxb5 {[%clk 0:01:45.6]} 14... Bb7 {[%clk 0:02:32.9]} 15. Bd4
{[%clk 0:01:25.9]} 15... Ne5 {[%clk 0:02:32.2]} 16. f4 {[%clk 0:01:18.3]} 16...
O-O {[%clk 0:02:20.7]} 17. Nc3 {[%clk 0:00:44.5]} 17... Ng4 {[%clk 0:02:16.5]}
18. Bxg7 {[%clk 0:00:44.4]} 18... Kxg7 {[%clk 0:02:16.8]} 19. O-O-O {[%clk
0:00:39.4]} 19... Qb6 {[%clk 0:02:09.4]} 20. Qd4+ {[%clk 0:00:32.6]} 20... Qxd4
{[%clk 0:02:08.4]} 21. Rxd4 {[%clk 0:00:33.5]} 21... Ne3 {[%clk 0:02:07.6]} 22.
Rd2 {[%clk 0:00:22.4]} 22... Rac8 {[%clk 0:01:56.6]} 23. Rh3 {[%clk 0:00:21.8]}
23... Nxf1 {[%clk 0:01:53.6]} 24. Rf2 {[%clk 0:00:22]} 24... Rc4 {[%clk
0:01:41.8]} 25. Rd3 {[%clk 0:00:17.6]} 25... Nh2 {[%clk 0:01:40.1]} 0-1

[Event "*** Titled Tuesday Blitz"]
[Site "Chess.com"]
[Date "2021.03.02"]
[Round "6"]
[White "exoticprincess"]
[Black "DLR7"]
[Result "1-0"]
[WhiteElo "2983"]
[BlackElo "2629"]
[TimeControl "180+1"]
[EndTime "11:05:12 PST"]
[Termination "exoticprincess won by resignation"]

1. d4 {[%clk 0:03:00.9]} 1... Nf6 {[%clk 0:02:55.8]} 2. Nc3 {[%clk 0:03:01.1]}
2... d5 {[%clk 0:02:52.9]} 3. Bf4 {[%clk 0:03:01.3]} 3... c5 {[%clk 0:02:52.4]}
4. e3 {[%clk 0:03:00.9]} 4... e6 {[%clk 0:02:30]} 5. Nb5 {[%clk 0:02:59.7]} 5...
Na6 {[%clk 0:02:29.8]} 6. c3 {[%clk 0:03:00.1]} 6... Qb6 {[%clk 0:02:21.5]} 7.
a4 {[%clk 0:02:59.7]} 7... Bd7 {[%clk 0:02:17.1]} 8. Nf3 {[%clk 0:02:56.9]} 8...
Be7 {[%clk 0:02:06.1]} 9. Ne5 {[%clk 0:02:54.8]} 9... O-O {[%clk 0:02:02.7]} 10.
Nxd7 {[%clk 0:02:50.5]} 10... Nxd7 {[%clk 0:02:02.2]} 11. Bd3 {[%clk 0:02:51.4]}
11... Nf6 {[%clk 0:01:54.9]} 12. O-O {[%clk 0:02:46.4]} 12... Ne8 {[%clk
0:01:33]} 13. Re1 {[%clk 0:02:38.8]} 13... Nd6 {[%clk 0:01:29.7]} 14. a5 {[%clk
0:02:18.3]} 14... Qc6 {[%clk 0:01:26.4]} 15. Qa4 {[%clk 0:02:18.4]} 15... Rfd8
{[%clk 0:01:04.7]} 16. Nxd6 {[%clk 0:02:05.5]} 16... Qxa4 {[%clk 0:01:04.8]} 17.
Rxa4 {[%clk 0:02:04.4]} 17... Bxd6 {[%clk 0:01:00.4]} 18. Bxa6 {[%clk
0:02:03.6]} 18... Bxf4 {[%clk 0:00:56]} 19. exf4 {[%clk 0:01:57.5]} 19... bxa6
{[%clk 0:00:55.6]} 20. dxc5 {[%clk 0:01:58]} 20... Rab8 {[%clk 0:00:52.8]} 21.
Re2 {[%clk 0:01:28]} 21... Rb5 {[%clk 0:00:48.7]} 22. b4 {[%clk 0:01:27.4]}
22... d4 {[%clk 0:00:48.9]} 23. Rd2 {[%clk 0:01:27.6]} 23... d3 {[%clk
0:00:41.8]} 24. f3 {[%clk 0:01:22.2]} 24... f6 {[%clk 0:00:36.8]} 25. Kf2 {[%clk
0:01:21.8]} 25... e5 {[%clk 0:00:37.7]} 26. fxe5 {[%clk 0:01:21.4]} 26... fxe5
{[%clk 0:00:38.6]} 27. Ke3 {[%clk 0:01:21.5]} 1-0

[Event "*** Titled Tuesday Blitz"]
[Site "Chess.com"]
[Date "2021.03.02"]
[Round "6"]
[White "annamaja"]
[Black "anskam"]
[Result "1-0"]
[WhiteElo "2373"]
[BlackElo "1779"]
[TimeControl "180+1"]
[EndTime "11:05:12 PST"]
[Termination "annamaja won by resignation"]

1. e4 {[%clk 0:03:00.9]} 1... c5 {[%clk 0:02:58.6]} 2. Nf3 {[%clk 0:03:00.9]}
2... d6 {[%clk 0:02:58]} 3. d4 {[%clk 0:03:01]} 3... cxd4 {[%clk 0:02:58.1]} 4.
Nxd4 {[%clk 0:03:01.9]} 4... Nf6 {[%clk 0:02:57.3]} 5. Nc3 {[%clk 0:03:02.4]}
5... a6 {[%clk 0:02:57.2]} 6. Be2 {[%clk 0:03:00.9]} 6... e5 {[%clk 0:02:56.5]}
7. Nb3 {[%clk 0:03:00.9]} 7... Be6 {[%clk 0:02:56.3]} 8. O-O {[%clk 0:03:00.9]}
8... Qc7 {[%clk 0:02:55.3]} 9. Kh1 {[%clk 0:03:01]} 9... Be7 {[%clk 0:02:54.6]}
10. f4 {[%clk 0:03:01.2]} 10... exf4 {[%clk 0:02:51.4]} 11. Bxf4 {[%clk
0:03:02.1]} 11... Nbd7 {[%clk 0:02:49.4]} 12. Qe1 {[%clk 0:02:59.1]} 12... Ne5
{[%clk 0:02:47.3]} 13. Nd4 {[%clk 0:02:50.2]} 13... O-O {[%clk 0:02:29.9]} 14.
Nf5 {[%clk 0:02:46.9]} 14... Bxf5 {[%clk 0:02:26]} 15. exf5 {[%clk 0:02:47.8]}
15... Rac8 {[%clk 0:02:18.7]} 16. Qg3 {[%clk 0:02:43.4]} 16... b5 {[%clk
0:02:15.5]} 17. Bg5 {[%clk 0:02:34.5]} 17... Nc4 {[%clk 0:02:05.7]} 18. Bh6
{[%clk 0:02:22.3]} 18... g6 {[%clk 0:01:41.8]} 19. fxg6 {[%clk 0:02:06.1]} 19...
fxg6 {[%clk 0:01:40.3]} 20. Bxf8 {[%clk 0:02:00.1]} 20... Rxf8 {[%clk
0:01:37.4]} 21. Bd3 {[%clk 0:01:44.4]} 21... Kg7 {[%clk 0:01:32.6]} 22. Ne4
{[%clk 0:01:31.7]} 22... Nxe4 {[%clk 0:01:23.3]} 23. Bxe4 {[%clk 0:01:28.7]}
23... Nxb2 {[%clk 0:01:19.1]} 24. Rxf8 {[%clk 0:01:22.5]} 24... Bxf8 {[%clk
0:01:16.7]} 25. Rf1 {[%clk 0:01:21.9]} 25... Nc4 {[%clk 0:01:13.2]} 26. Qc3+
{[%clk 0:01:19.2]} 26... Ne5 {[%clk 0:01:05.3]} 27. Qxc7+ {[%clk 0:01:18.3]} 1-0

[Event "*** Titled Tuesday Blitz"]
[Site "Chess.com"]
[Date "2021.03.02"]
[Round "6"]
[White "carloseduar100"]
[Black "Mbneu"]
[Result "0-1"]
[WhiteElo "2091"]
[BlackElo "2295"]
[TimeControl "180+1"]
[EndTime "11:05:25 PST"]
[Termination "Mbneu won by checkmate"]

1. e4 {[%clk 0:02:29.4]} 1... c5 {[%clk 0:02:56.9]} 2. Nf3 {[%clk 0:02:28.8]}
2... Nf6 {[%clk 0:02:57.1]} 3. e5 {[%clk 0:02:25.7]} 3... Nd5 {[%clk 0:02:57.1]}
4. Nc3 {[%clk 0:02:23.2]} 4... Nxc3 {[%clk 0:02:56.7]} 5. dxc3 {[%clk
0:02:24.1]} 5... Nc6 {[%clk 0:02:55.6]} 6. Bc4 {[%clk 0:02:23.7]} 6... e6 {[%clk
0:02:52.3]} 7. O-O {[%clk 0:02:23.6]} 7... d5 {[%clk 0:02:48.2]} 8. exd6 {[%clk
0:02:22.9]} 8... Bxd6 {[%clk 0:02:48.6]} 9. h3 {[%clk 0:02:23.2]} 9... Qc7
{[%clk 0:02:43.9]} 10. Be3 {[%clk 0:02:22.9]} 10... b6 {[%clk 0:02:42.5]} 11.
Qe2 {[%clk 0:02:22.3]} 11... Bb7 {[%clk 0:02:41.7]} 12. Rad1 {[%clk 0:02:19.7]}
12... O-O {[%clk 0:02:39.8]} 13. Ng5 {[%clk 0:02:17.4]} 13... h6 {[%clk
0:02:31.9]} 14. Nxe6 {[%clk 0:01:55.2]} 14... fxe6 {[%clk 0:02:26]} 15. Bxh6
{[%clk 0:01:55.2]} 15... Ne5 {[%clk 0:01:42.1]} 16. Bxe6+ {[%clk 0:01:49]} 16...
Kh7 {[%clk 0:01:41.6]} 17. Bg5 {[%clk 0:01:31.3]} 17... g6 {[%clk 0:01:04.7]}
18. f4 {[%clk 0:01:19.2]} 18... Rae8 {[%clk 0:00:52.4]} 19. fxe5 {[%clk
0:01:16.7]} 19... Rxe6 {[%clk 0:00:51.7]} 20. Rxf8 {[%clk 0:01:14.1]} 20... Bxf8
{[%clk 0:00:48.7]} 21. Qg4 {[%clk 0:01:12.2]} 21... Qc6 {[%clk 0:00:32.8]} 22.
Qh4+ {[%clk 0:01:08.2]} 22... Kg8 {[%clk 0:00:32.2]} 23. Bf6 {[%clk 0:01:08]}
23... Qxg2# {[%clk 0:00:24]} 0-1